[Event "Early-Titled-Tuesday-Blitz-March-19-2024"]
[Site "Chess.com"]
[Date "2024.03.19"]
[Round "8"]
[White "Mikhail_Golubev"]
[Black "JonasEilenberg"]
[Result "1-0"]
[WhiteElo "2726"]
[BlackElo "2568"]
[TimeControl "180+1"]
[EndTime "9:28:59 PDT"]
[Termination "Mikhail_Golubev won by resignation"]

1. e4 {[%clk 0:03:00.9]} 1... c5 {[%clk 0:03:00.1]} 2. Nf3 {[%clk 0:03:00.4]}
2... Nc6 {[%clk 0:03:00.8]} 3. Nc3 {[%clk 0:02:59.8]} 3... e5 {[%clk 0:03:00.7]}
4. Bc4 {[%clk 0:02:59]} 4... Be7 {[%clk 0:03:00]} 5. d3 {[%clk 0:02:58.5]} 5...
d6 {[%clk 0:03:00.5]} 6. Nd2 {[%clk 0:02:57.5]} 6... Nf6 {[%clk 0:03:00.6]} 7.
Nf1 {[%clk 0:02:57.3]} 7... Bg4 {[%clk 0:03:00.6]} 8. f3 {[%clk 0:02:57.2]} 8...
Be6 {[%clk 0:03:01.3]} 9. Ne3 {[%clk 0:02:57.7]} 9... Nb4 {[%clk 0:03:01.9]} 10.
a3 {[%clk 0:02:49.9]} 10... d5 {[%clk 0:02:51]} 11. Bb5+ {[%clk 0:02:14.7]}
11... Nc6 {[%clk 0:02:47.9]} 12. exd5 {[%clk 0:02:14.4]} 12... Nxd5 {[%clk
0:02:47.8]} 13. Nexd5 {[%clk 0:02:13.4]} 13... Bxd5 {[%clk 0:02:48.7]} 14. Nxd5
{[%clk 0:02:13.3]} 14... Qxd5 {[%clk 0:02:49.6]} 15. O-O {[%clk 0:02:12.3]}
15... O-O {[%clk 0:02:48.5]} 16. Bc4 {[%clk 0:02:04.7]} 16... Qd6 {[%clk
0:02:48.5]} 17. f4 {[%clk 0:02:03.2]} 17... Rad8 {[%clk 0:02:47.6]} 18. Kh1
{[%clk 0:01:51.6]} 18... Kh8 {[%clk 0:02:43]} 19. Be3 {[%clk 0:01:44.2]} 19...
f5 {[%clk 0:02:41.1]} 20. Qf3 {[%clk 0:01:35.4]} 20... Bf6 {[%clk 0:02:37]} 21.
c3 {[%clk 0:01:28.7]} 21... Na5 {[%clk 0:02:26.8]} 22. b4 {[%clk 0:01:06.1]}
22... Nxc4 {[%clk 0:02:17.9]} 23. Bxc5 {[%clk 0:00:55.7]} 23... Qxd3 {[%clk
0:02:17.5]} 24. Qxd3 {[%clk 0:00:49.8]} 24... Rxd3 {[%clk 0:02:18.4]} 25. fxe5
{[%clk 0:00:48.7]} 25... Be7 {[%clk 0:01:31]} 26. Bxe7 {[%clk 0:00:45.2]} 26...
Re8 {[%clk 0:01:31.3]} 27. Rxf5 {[%clk 0:00:40.3]} 27... g6 {[%clk 0:01:30.6]}
28. Bf6+ {[%clk 0:00:36.8]} 28... Kg8 {[%clk 0:01:30.8]} 29. Rf3 {[%clk
0:00:36.2]} 29... Nxe5 {[%clk 0:01:19.2]} 30. Rxd3 {[%clk 0:00:25.6]} 30... Nxd3
{[%clk 0:01:19.4]} 31. h3 {[%clk 0:00:25.6]} 31... Re2 {[%clk 0:01:16.4]} 32.
Bd4 {[%clk 0:00:22.4]} 32... Ne1 {[%clk 0:01:04.6]} 33. Bxa7 {[%clk 0:00:20.6]}
33... Nxg2 {[%clk 0:01:03.4]} 34. a4 {[%clk 0:00:20]} 34... Nh4 {[%clk
0:01:02.6]} 35. a5 {[%clk 0:00:18.6]} 35... Nf3 {[%clk 0:00:59.7]} 36. Bb8
{[%clk 0:00:18.3]} 36... Rc2 {[%clk 0:00:58.4]} 37. b5 {[%clk 0:00:17.8]} 37...
Nd2 {[%clk 0:00:34.6]} 38. a6 {[%clk 0:00:16.6]} 38... bxa6 {[%clk 0:00:35.5]}
39. bxa6 {[%clk 0:00:16.3]} 39... Nc4 {[%clk 0:00:35.9]} 40. Bc7 {[%clk
0:00:14.1]} 1-0

[Event "Early-Titled-Tuesday-Blitz-March-19-2024"]
[Site "Chess.com"]
[Date "2024.03.19"]
[Round "8"]
[White "pfalcon1949"]
[Black "Boorchess"]
[Result "0-1"]
[WhiteElo "1992"]
[BlackElo "2545"]
[TimeControl "180+1"]
[EndTime "9:28:59 PDT"]
[Termination "Boorchess won on time"]

1. e4 {[%clk 0:03:00.9]} 1... e5 {[%clk 0:02:57.1]} 2. Nf3 {[%clk 0:02:57.9]}
2... Nf6 {[%clk 0:02:56.8]} 3. Nc3 {[%clk 0:02:57.9]} 3... Nc6 {[%clk
0:02:56.4]} 4. Nxe5 {[%clk 0:02:56.7]} 4... Nxe5 {[%clk 0:02:55.1]} 5. d4 {[%clk
0:02:56.8]} 5... Nc6 {[%clk 0:02:45.6]} 6. d5 {[%clk 0:02:56]} 6... Bb4 {[%clk
0:02:42.3]} 7. dxc6 {[%clk 0:02:52.8]} 7... bxc6 {[%clk 0:02:42.4]} 8. Bd3
{[%clk 0:02:51.6]} 8... O-O {[%clk 0:02:41.2]} 9. O-O {[%clk 0:02:51.4]} 9...
Re8 {[%clk 0:02:41]} 10. Bg5 {[%clk 0:02:44]} 10... h6 {[%clk 0:02:40.4]} 11.
Bh4 {[%clk 0:02:43.2]} 11... Rb8 {[%clk 0:02:39.3]} 12. Kh1 {[%clk 0:02:36]}
12... Be7 {[%clk 0:02:32.8]} 13. e5 {[%clk 0:02:31.1]} 13... Nd5 {[%clk
0:02:30.9]} 14. Bxe7 {[%clk 0:02:30.7]} 14... Qxe7 {[%clk 0:02:28.8]} 15. Nxd5
{[%clk 0:02:27.8]} 15... cxd5 {[%clk 0:02:28.5]} 16. Re1 {[%clk 0:02:18.6]}
16... Rxb2 {[%clk 0:02:21.7]} 17. Qf3 {[%clk 0:02:18.4]} 17... c6 {[%clk
0:02:14.1]} 18. c4 {[%clk 0:02:01.6]} 18... Bb7 {[%clk 0:01:53.4]} 19. cxd5
{[%clk 0:01:58.8]} 19... cxd5 {[%clk 0:01:53.3]} 20. Rab1 {[%clk 0:01:54.1]}
20... Rxb1 {[%clk 0:01:51.2]} 21. Bxb1 {[%clk 0:01:49]} 21... Qb4 {[%clk
0:01:38.1]} 22. Rg1 {[%clk 0:01:38.1]} 22... Rxe5 {[%clk 0:01:35.3]} 23. Qd3
{[%clk 0:01:20.6]} 23... g6 {[%clk 0:01:26.6]} 24. Qh3 {[%clk 0:01:16.6]} 24...
Kg7 {[%clk 0:01:19.3]} 25. Qd3 {[%clk 0:00:43.9]} 25... d4 {[%clk 0:01:07.6]}
26. h4 {[%clk 0:00:37.3]} 26... Qc3 {[%clk 0:01:02.3]} 27. Qg3 {[%clk
0:00:27.7]} 27... Qxg3 {[%clk 0:00:57.6]} 28. fxg3 {[%clk 0:00:26.7]} 28... Re2
{[%clk 0:00:56.8]} 29. Kh2 {[%clk 0:00:23.4]} 29... a5 {[%clk 0:00:52.7]} 30.
Kh3 {[%clk 0:00:21.4]} 30... a4 {[%clk 0:00:50.6]} 31. a3 {[%clk 0:00:16.3]}
31... Rb2 {[%clk 0:00:47.4]} 32. Bd3 {[%clk 0:00:12.8]} 32... Rb3 {[%clk
0:00:46.2]} 33. Bc4 {[%clk 0:00:11.7]} 33... Rxa3 {[%clk 0:00:45.5]} 34. Rd1
{[%clk 0:00:10.3]} 34... d5 {[%clk 0:00:42.3]} 35. Bb5 {[%clk 0:00:08.9]} 35...
d3 {[%clk 0:00:32.8]} 36. Bxd3 {[%clk 0:00:07.4]} 36... Rc3 {[%clk 0:00:29.5]}
37. Bb5 {[%clk 0:00:06.4]} 37... a3 {[%clk 0:00:29.5]} 38. Ra1 {[%clk 0:00:05]}
38... d4 {[%clk 0:00:27.6]} 39. Kh2 {[%clk 0:00:02.2]} 39... Bd5 {[%clk
0:00:25.4]} 40. g4 {[%clk 0:00:01.6]} 40... a2 {[%clk 0:00:25.6]} 0-1

[Event "Early-Titled-Tuesday-Blitz-March-19-2024"]
[Site "Chess.com"]
[Date "2024.03.19"]
[Round "8"]
[White "Sam_ChessMood"]
[Black "DavidGavrilescu18"]
[Result "1/2-1/2"]
[WhiteElo "2942"]
[BlackElo "2788"]
[TimeControl "180+1"]
[EndTime "9:29:00 PDT"]
[Termination "Game drawn by agreement"]

1. d4 {[%clk 0:03:00.2]} 1... d5 {[%clk 0:02:56.9]} 2. c4 {[%clk 0:03:00.4]}
2... e6 {[%clk 0:02:57]} 3. Nc3 {[%clk 0:03:00.1]} 3... Nf6 {[%clk 0:02:57.4]}
4. cxd5 {[%clk 0:02:59.3]} 4... exd5 {[%clk 0:02:58.3]} 5. Bg5 {[%clk 0:02:59]}
5... Bb4 {[%clk 0:02:58.8]} 6. e3 {[%clk 0:02:55.6]} 6... h6 {[%clk 0:02:59.1]}
7. Bh4 {[%clk 0:02:56]} 7... g5 {[%clk 0:02:59.3]} 8. Bg3 {[%clk 0:02:56.4]}
8... h5 {[%clk 0:03:00]} 9. h4 {[%clk 0:02:35.4]} 9... Ne4 {[%clk 0:02:58.8]}
10. Ne2 {[%clk 0:02:35.6]} 10... Bg4 {[%clk 0:02:59.4]} 11. Qb3 {[%clk
0:02:31.8]} 11... Nxg3 {[%clk 0:02:59.7]} 12. Nxg3 {[%clk 0:02:29.6]} 12... Nc6
{[%clk 0:03:00.3]} 13. hxg5 {[%clk 0:02:01.6]} 13... Qxg5 {[%clk 0:02:57.5]} 14.
Bb5 {[%clk 0:02:01.6]} 14... Bxc3+ {[%clk 0:02:56]} 15. Qxc3 {[%clk 0:02:00.1]}
15... Rh6 {[%clk 0:02:56.4]} 16. Ne2 {[%clk 0:01:56.9]} 16... Bxe2 {[%clk
0:02:53.7]} 17. Kxe2 {[%clk 0:01:47.4]} 17... O-O-O {[%clk 0:02:53.9]} 18. Rag1
{[%clk 0:01:29.8]} 18... h4 {[%clk 0:02:43.1]} 19. Kd1 {[%clk 0:01:27.2]} 19...
Rf6 {[%clk 0:02:35.6]} 20. Qd2 {[%clk 0:01:27]} 20... Qf5 {[%clk 0:02:07.4]} 21.
Rf1 {[%clk 0:01:21.5]} 21... Qb1+ {[%clk 0:02:04.3]} 22. Qc1 {[%clk 0:01:21.8]}
22... Qe4 {[%clk 0:02:04.9]} 23. Rh2 {[%clk 0:01:07.5]} 23... a6 {[%clk
0:01:55.5]} 24. Be2 {[%clk 0:01:03.6]} 24... Re8 {[%clk 0:01:54.5]} 25. Qc2
{[%clk 0:00:10.8]} 25... Qxc2+ {[%clk 0:01:48.7]} 26. Kxc2 {[%clk 0:00:11.7]}
26... Nxd4+ {[%clk 0:01:49.4]} 27. Kd3 {[%clk 0:00:12.3]} 27... Nxe2 {[%clk
0:01:45.7]} 28. Kxe2 {[%clk 0:00:13.2]} 28... d4 {[%clk 0:01:44.8]} 29. Rxh4
{[%clk 0:00:13]} 29... dxe3 {[%clk 0:01:45.5]} 30. f3 {[%clk 0:00:10]} 30... Rc6
{[%clk 0:01:40]} 31. Re4 {[%clk 0:00:05.8]} 31... Rxe4 {[%clk 0:01:36.1]} 32.
fxe4 {[%clk 0:00:06.3]} 32... Rc2+ {[%clk 0:01:36.7]} 33. Kxe3 {[%clk
0:00:06.2]} 33... Rxb2 {[%clk 0:01:35.9]} 34. g4 {[%clk 0:00:05.9]} 34... Rg2
{[%clk 0:01:31.7]} 35. Rxf7 {[%clk 0:00:04.3]} 35... Rxg4 {[%clk 0:01:32]} 36.
e5 {[%clk 0:00:04.9]} 36... Kd8 {[%clk 0:01:29.5]} 37. e6 {[%clk 0:00:04]} 37...
Rg6 {[%clk 0:01:28.2]} 38. Rd7+ {[%clk 0:00:04.1]} 38... Ke8 {[%clk 0:01:21.6]}
39. Rxc7 {[%clk 0:00:04.4]} 39... Rxe6+ {[%clk 0:01:22.3]} 40. Kd3 {[%clk
0:00:04.9]} 40... Re7 {[%clk 0:01:22.2]} 41. Rc1 {[%clk 0:00:04.4]} 41... Kd7
{[%clk 0:01:22.4]} 42. Kc4 {[%clk 0:00:04.4]} 42... Re3 {[%clk 0:01:21.3]} 43.
Kb4 {[%clk 0:00:04.4]} 43... Kd6 {[%clk 0:01:19.9]} 44. a4 {[%clk 0:00:04.7]}
44... b6 {[%clk 0:01:18.4]} 45. Rc2 {[%clk 0:00:04.9]} 45... a5+ {[%clk
0:01:16.5]} 46. Kb5 {[%clk 0:00:05.1]} 46... Rb3+ {[%clk 0:01:17]} 47. Ka6
{[%clk 0:00:05.1]} 47... Rb4 {[%clk 0:01:17.7]} 48. Rc1 {[%clk 0:00:05.5]} 48...
Kd5 {[%clk 0:01:17.9]} 49. Rc2 {[%clk 0:00:05.3]} 49... Kd4 {[%clk 0:01:18.2]}
50. Rc6 {[%clk 0:00:04.5]} 50... Rxa4 {[%clk 0:01:16.8]} 51. Kxb6 {[%clk
0:00:04.7]} 51... Ra1 {[%clk 0:01:15.7]} 52. Kb5 {[%clk 0:00:05.1]} 52... a4
{[%clk 0:01:14.2]} 53. Kb4 {[%clk 0:00:05.1]} 53... a3 {[%clk 0:01:14.2]} 54.
Kb3 {[%clk 0:00:05.5]} 54... Kd5 {[%clk 0:01:13.4]} 55. Rc8 {[%clk 0:00:05.3]}
55... a2 {[%clk 0:01:11.9]} 56. Kb2 {[%clk 0:00:05.3]} 56... Rb1+ {[%clk
0:01:12.5]} 57. Kxa2 {[%clk 0:00:05.5]} 57... Rb7 {[%clk 0:01:13.4]} 58. Rc2
{[%clk 0:00:05]} 58... Ra7+ {[%clk 0:01:10.7]} 59. Kb2 {[%clk 0:00:05]} 1/2-1/2

[Event "Early-Titled-Tuesday-Blitz-March-19-2024"]
[Site "Chess.com"]
[Date "2024.03.19"]
[Round "8"]
[White "kpio91"]
[Black "Gryffindorac8"]
[Result "0-1"]
[WhiteElo "2837"]
[BlackElo "2435"]
[TimeControl "180+1"]
[EndTime "9:29:00 PDT"]
[Termination "Gryffindorac8 won by resignation"]

1. g3 {[%clk 0:03:00.9]} 1... d5 {[%clk 0:02:54.5]} 2. Bg2 {[%clk 0:03:01.8]}
2... Nf6 {[%clk 0:02:54.5]} 3. Nf3 {[%clk 0:03:01.8]} 3... Bf5 {[%clk 0:02:53]}
4. O-O {[%clk 0:03:00.8]} 4... e6 {[%clk 0:02:53.1]} 5. d3 {[%clk 0:03:00.2]}
5... h6 {[%clk 0:02:51.7]} 6. Nbd2 {[%clk 0:02:59.8]} 6... Be7 {[%clk
0:02:51.5]} 7. Qe1 {[%clk 0:03:00.2]} 7... O-O {[%clk 0:02:50.7]} 8. e4 {[%clk
0:03:00.3]} 8... Bh7 {[%clk 0:02:50.3]} 9. b3 {[%clk 0:03:00.4]} 9... c5 {[%clk
0:02:48.4]} 10. Bb2 {[%clk 0:02:59.3]} 10... Nc6 {[%clk 0:02:47.9]} 11. Qe2
{[%clk 0:02:58.8]} 11... Rc8 {[%clk 0:02:44.5]} 12. a3 {[%clk 0:02:53.2]} 12...
b5 {[%clk 0:02:42]} 13. Rfe1 {[%clk 0:02:36]} 13... a5 {[%clk 0:02:31.9]} 14. c4
{[%clk 0:02:18.8]} 14... bxc4 {[%clk 0:02:26.7]} 15. bxc4 {[%clk 0:02:18.5]}
15... d4 {[%clk 0:02:22.5]} 16. Bc1 {[%clk 0:02:12.1]} 16... a4 {[%clk
0:02:18.6]} 17. h4 {[%clk 0:02:03.6]} 17... Rb8 {[%clk 0:02:17]} 18. Nf1 {[%clk
0:02:00.9]} 18... Na5 {[%clk 0:02:16.5]} 19. e5 {[%clk 0:02:00.6]} 19... Nd7
{[%clk 0:02:14.9]} 20. Bf4 {[%clk 0:02:00.7]} 20... Rb3 {[%clk 0:02:09.3]} 21.
Red1 {[%clk 0:02:00.3]} 21... Qb6 {[%clk 0:02:05.8]} 22. N1h2 {[%clk 0:01:56.1]}
22... Rb2 {[%clk 0:01:58.2]} 23. Rd2 {[%clk 0:01:42.1]} 23... Rxd2 {[%clk
0:01:53.2]} 24. Bxd2 {[%clk 0:01:42]} 24... Qb2 {[%clk 0:01:47.2]} 25. Rd1
{[%clk 0:01:05.3]} 25... Nb3 {[%clk 0:01:46.7]} 26. Ng4 {[%clk 0:01:05.4]} 26...
Nxd2 {[%clk 0:01:43.8]} 27. Nxd2 {[%clk 0:01:04.8]} 27... Qxa3 {[%clk
0:01:41.8]} 28. Be4 {[%clk 0:01:00.7]} 28... Rb8 {[%clk 0:01:30.3]} 29. Bxh7+
{[%clk 0:00:53.9]} 29... Kxh7 {[%clk 0:01:31.2]} 30. Qf3 {[%clk 0:00:54.5]}
30... Kg8 {[%clk 0:01:27.4]} 31. Qc6 {[%clk 0:00:52.2]} 31... Rd8 {[%clk
0:01:14]} 32. Ne4 {[%clk 0:00:50.1]} 32... Qb3 {[%clk 0:01:07.3]} 33. Rd2 {[%clk
0:00:49.7]} 33... a3 {[%clk 0:01:06.2]} 34. Qa6 {[%clk 0:00:42.1]} 34... Nb8
{[%clk 0:00:51.2]} 35. Qa7 {[%clk 0:00:40.7]} 35... Nc6 {[%clk 0:00:48.9]} 36.
Qc7 {[%clk 0:00:36.9]} 36... a2 {[%clk 0:00:45.9]} 37. Rxa2 {[%clk 0:00:37.2]}
37... Qxa2 {[%clk 0:00:44.8]} 38. Qxc6 {[%clk 0:00:37.7]} 38... Qb1+ {[%clk
0:00:44.8]} 39. Kg2 {[%clk 0:00:37.8]} 39... Qxd3 {[%clk 0:00:43.3]} 40. Nef6+
{[%clk 0:00:17.5]} 40... gxf6 {[%clk 0:00:40.5]} 41. exf6 {[%clk 0:00:17.2]}
41... Bf8 {[%clk 0:00:39.2]} 42. Qc7 {[%clk 0:00:17.7]} 42... Qe4+ {[%clk
0:00:36.1]} 43. f3 {[%clk 0:00:17.9]} 43... Qe2+ {[%clk 0:00:32.7]} 44. Nf2
{[%clk 0:00:12.2]} 44... Ra8 {[%clk 0:00:31.5]} 45. g4 {[%clk 0:00:12.3]} 45...
Ra2 {[%clk 0:00:30.4]} 0-1

[Event "Early-Titled-Tuesday-Blitz-March-19-2024"]
[Site "Chess.com"]
[Date "2024.03.19"]
[Round "8"]
[White "MightyGMpretender"]
[Black "Ural_bogatyr"]
[Result "1-0"]
[WhiteElo "2803"]
[BlackElo "2613"]
[TimeControl "180+1"]
[EndTime "9:29:00 PDT"]
[Termination "MightyGMpretender won by resignation"]

1. e4 {[%clk 0:02:55.3]} 1... e5 {[%clk 0:02:55.3]} 2. Nf3 {[%clk 0:02:53.2]}
2... Nc6 {[%clk 0:02:53.6]} 3. Bb5 {[%clk 0:02:53.5]} 3... a6 {[%clk 0:02:53.6]}
4. Ba4 {[%clk 0:02:53.6]} 4... Nf6 {[%clk 0:02:54.2]} 5. O-O {[%clk 0:02:53.8]}
5... Nxe4 {[%clk 0:02:53.9]} 6. Re1 {[%clk 0:02:40.6]} 6... Nc5 {[%clk
0:02:53.1]} 7. Nxe5 {[%clk 0:02:40.8]} 7... Nxe5 {[%clk 0:02:45.5]} 8. Rxe5+
{[%clk 0:02:40.3]} 8... Be7 {[%clk 0:02:45.7]} 9. Bb3 {[%clk 0:02:38.5]} 9...
O-O {[%clk 0:02:43.9]} 10. d4 {[%clk 0:02:37.6]} 10... Nxb3 {[%clk 0:02:43.4]}
11. axb3 {[%clk 0:02:38.2]} 11... Bf6 {[%clk 0:02:44]} 12. Re1 {[%clk
0:02:32.2]} 12... d5 {[%clk 0:02:43.4]} 13. Bf4 {[%clk 0:02:28.7]} 13... Bf5
{[%clk 0:02:42.8]} 14. c3 {[%clk 0:02:26.3]} 14... Qd7 {[%clk 0:02:41.6]} 15.
Nd2 {[%clk 0:02:25.8]} 15... Rfe8 {[%clk 0:02:38.3]} 16. Qf3 {[%clk 0:02:21.6]}
16... c6 {[%clk 0:02:34.2]} 17. b4 {[%clk 0:02:17.4]} 17... h6 {[%clk
0:02:17.8]} 18. Nb3 {[%clk 0:02:11.8]} 18... Be7 {[%clk 0:02:09.1]} 19. h3
{[%clk 0:02:06.2]} 19... Bf8 {[%clk 0:02:07.9]} 20. Qg3 {[%clk 0:02:04.8]} 20...
Bg6 {[%clk 0:02:06.6]} 21. Na5 {[%clk 0:02:00.1]} 21... Kh7 {[%clk 0:01:51.9]}
22. Bc7 {[%clk 0:01:48.5]} 22... Rxe1+ {[%clk 0:01:42.7]} 23. Rxe1 {[%clk
0:01:48.1]} 23... Rc8 {[%clk 0:01:43.3]} 24. Bf4 {[%clk 0:01:43.2]} 24... Be4
{[%clk 0:01:37.9]} 25. f3 {[%clk 0:01:42.2]} 25... Bf5 {[%clk 0:01:35.6]} 26. h4
{[%clk 0:01:33.7]} 26... b6 {[%clk 0:01:18.3]} 27. Nb3 {[%clk 0:01:31.5]} 27...
c5 {[%clk 0:01:18.5]} 28. dxc5 {[%clk 0:01:26.8]} 28... bxc5 {[%clk 0:01:18.3]}
29. Nxc5 {[%clk 0:01:26.5]} 29... Bxc5+ {[%clk 0:01:17.9]} 30. bxc5 {[%clk
0:01:26.9]} 30... Rxc5 {[%clk 0:01:18.3]} 31. Be5 {[%clk 0:01:19.3]} 31... f6
{[%clk 0:01:14.5]} 32. Bd6 {[%clk 0:01:15.2]} 32... Qa7 {[%clk 0:00:51.1]} 33.
Bxc5 {[%clk 0:00:58.5]} 33... Qxc5+ {[%clk 0:00:52]} 34. Kh2 {[%clk 0:00:57.4]}
34... a5 {[%clk 0:00:49]} 35. Re8 {[%clk 0:00:52]} 35... h5 {[%clk 0:00:45.8]}
36. Qb8 {[%clk 0:00:51.5]} 36... Bd7 {[%clk 0:00:39.5]} 37. Rh8+ {[%clk
0:00:49.7]} 37... Kg6 {[%clk 0:00:39.8]} 38. Qg3+ {[%clk 0:00:50.3]} 38... Kf7
{[%clk 0:00:39.9]} 39. Rh7 {[%clk 0:00:43.6]} 39... Qf8 {[%clk 0:00:37.5]} 40.
Rxh5 {[%clk 0:00:44.2]} 40... Be6 {[%clk 0:00:35.9]} 41. Qf4 {[%clk 0:00:39.7]}
41... Qc8 {[%clk 0:00:21.9]} 42. Re5 {[%clk 0:00:32.1]} 42... Qb8 {[%clk
0:00:17.5]} 43. Re4 {[%clk 0:00:30.6]} 43... Qxb2 {[%clk 0:00:17.3]} 44. Qc7+
{[%clk 0:00:30.4]} 1-0

[Event "Early-Titled-Tuesday-Blitz-March-19-2024"]
[Site "Chess.com"]
[Date "2024.03.19"]
[Round "8"]
[White "axvesik"]
[Black "AccioChess"]
[Result "0-1"]
[WhiteElo "2563"]
[BlackElo "2475"]
[TimeControl "180+1"]
[EndTime "9:29:01 PDT"]
[Termination "AccioChess won on time"]

1. e4 {[%clk 0:03:00.9]} 1... c5 {[%clk 0:02:58.6]} 2. Nf3 {[%clk 0:03:00.6]}
2... Nc6 {[%clk 0:02:58.5]} 3. Nc3 {[%clk 0:02:59.5]} 3... Nf6 {[%clk
0:02:57.9]} 4. Bb5 {[%clk 0:02:56]} 4... g6 {[%clk 0:02:56.9]} 5. O-O {[%clk
0:02:47.9]} 5... Bg7 {[%clk 0:02:56.7]} 6. Bxc6 {[%clk 0:02:45.4]} 6... dxc6
{[%clk 0:02:57.6]} 7. d3 {[%clk 0:02:38.4]} 7... O-O {[%clk 0:02:49.9]} 8. Qe2
{[%clk 0:02:36]} 8... Bg4 {[%clk 0:02:47.1]} 9. a4 {[%clk 0:02:31.1]} 9... Ne8
{[%clk 0:02:46.4]} 10. Be3 {[%clk 0:02:20.4]} 10... b6 {[%clk 0:02:45.4]} 11. a5
{[%clk 0:02:17.2]} 11... Nc7 {[%clk 0:02:43.5]} 12. h3 {[%clk 0:02:02.4]} 12...
Bxf3 {[%clk 0:02:34.3]} 13. Qxf3 {[%clk 0:02:03.3]} 13... Ne6 {[%clk 0:02:33.2]}
14. Qd1 {[%clk 0:01:47.6]} 14... Nd4 {[%clk 0:02:30]} 15. f4 {[%clk 0:01:45]}
15... Qd7 {[%clk 0:02:14.9]} 16. Na4 {[%clk 0:01:35.3]} 16... Rab8 {[%clk
0:02:06.1]} 17. c3 {[%clk 0:01:32.5]} 17... Nb5 {[%clk 0:01:59.4]} 18. Qe2
{[%clk 0:01:26.2]} 18... Qb7 {[%clk 0:01:09.7]} 19. f5 {[%clk 0:01:19.6]} 19...
Rbd8 {[%clk 0:01:09]} 20. Bg5 {[%clk 0:00:58.7]} 20... Rd7 {[%clk 0:01:07.1]}
21. e5 {[%clk 0:00:44.9]} 21... gxf5 {[%clk 0:00:46.8]} 22. Rxf5 {[%clk
0:00:36.8]} 22... Rd5 {[%clk 0:00:46.3]} 23. Raf1 {[%clk 0:00:20.5]} 23... e6
{[%clk 0:00:45.3]} 24. Rf6 {[%clk 0:00:20.6]} 24... Qc7 {[%clk 0:00:33]} 25. Re1
{[%clk 0:00:13.1]} 25... bxa5 {[%clk 0:00:11.4]} 26. Qe3 {[%clk 0:00:07.8]}
26... Qd7 {[%clk 0:00:08.3]} 27. Qg3 {[%clk 0:00:06.1]} 27... Rxd3 {[%clk
0:00:07.9]} 28. Re3 {[%clk 0:00:06.2]} 28... Rxe3 {[%clk 0:00:07.7]} 29. Bxe3
{[%clk 0:00:06.4]} 29... Qd1+ {[%clk 0:00:08.1]} 30. Kh2 {[%clk 0:00:06.4]}
30... Qh5 {[%clk 0:00:06.3]} 31. Nxc5 {[%clk 0:00:05.5]} 31... Kh8 {[%clk
0:00:05.1]} 32. Nd7 {[%clk 0:00:04.3]} 32... Rg8 {[%clk 0:00:05.1]} 0-1

[Event "Early-Titled-Tuesday-Blitz-March-19-2024"]
[Site "Chess.com"]
[Date "2024.03.19"]
[Round "8"]
[White "SARGISMV"]
[Black "rezamahdavi2008"]
[Result "0-1"]
[WhiteElo "2512"]
[BlackElo "2860"]
[TimeControl "180+1"]
[EndTime "9:29:02 PDT"]
[Termination "rezamahdavi2008 won on time"]

1. d4 {[%clk 0:02:57.1]} 1... Nf6 {[%clk 0:02:59.9]} 2. c4 {[%clk 0:02:55.8]}
2... e6 {[%clk 0:02:59.9]} 3. Nc3 {[%clk 0:02:55.3]} 3... Bb4 {[%clk 0:03:00.4]}
4. e3 {[%clk 0:02:55]} 4... O-O {[%clk 0:02:55.4]} 5. Bd2 {[%clk 0:02:51.3]}
5... d5 {[%clk 0:02:48.4]} 6. Nf3 {[%clk 0:02:51.6]} 6... Re8 {[%clk 0:02:30.6]}
7. Rc1 {[%clk 0:02:42.6]} 7... Nbd7 {[%clk 0:02:27.6]} 8. Bd3 {[%clk 0:02:28.1]}
8... Bf8 {[%clk 0:02:26.1]} 9. O-O {[%clk 0:02:19.9]} 9... c6 {[%clk 0:02:14.9]}
10. e4 {[%clk 0:01:58.4]} 10... dxc4 {[%clk 0:02:15.1]} 11. Bxc4 {[%clk
0:01:58.1]} 11... b6 {[%clk 0:02:14.6]} 12. Bg5 {[%clk 0:01:48.1]} 12... h6
{[%clk 0:02:13.9]} 13. Bh4 {[%clk 0:01:47.5]} 13... Be7 {[%clk 0:02:12.7]} 14.
Qe2 {[%clk 0:01:36.5]} 14... Bb7 {[%clk 0:02:02.2]} 15. e5 {[%clk 0:01:25.1]}
15... Nd5 {[%clk 0:01:58.1]} 16. Bxe7 {[%clk 0:01:26]} 16... Nxe7 {[%clk
0:01:39.7]} 17. Ne4 {[%clk 0:01:24.5]} 17... Qc7 {[%clk 0:01:26.4]} 18. Nd6
{[%clk 0:01:23.8]} 18... Red8 {[%clk 0:01:27]} 19. Nh4 {[%clk 0:00:35.1]} 19...
Nf8 {[%clk 0:01:23.4]} 20. Rc3 {[%clk 0:00:29.7]} 20... Nc8 {[%clk 0:01:15.7]}
21. Nxb7 {[%clk 0:00:22.6]} 21... Qxb7 {[%clk 0:01:16.6]} 22. Rg3 {[%clk
0:00:20.5]} 22... Rxd4 {[%clk 0:01:10.8]} 23. Nf3 {[%clk 0:00:16.8]} 23... Rd8
{[%clk 0:01:05.9]} 24. Qe4 {[%clk 0:00:16.4]} 24... Ne7 {[%clk 0:01:03.5]} 25.
Bd3 {[%clk 0:00:13.7]} 25... Nf5 {[%clk 0:00:59.7]} 26. Rh3 {[%clk 0:00:12]}
26... Ng6 {[%clk 0:00:54.8]} 27. Bb1 {[%clk 0:00:11.3]} 27... Qd7 {[%clk
0:00:51.1]} 28. Qg4 {[%clk 0:00:11.1]} 28... Nfe7 {[%clk 0:00:46.3]} 29. Nh4
{[%clk 0:00:10.2]} 29... Qd4 {[%clk 0:00:43.6]} 30. Qh5 {[%clk 0:00:06.8]} 30...
Nf4 {[%clk 0:00:42.7]} 31. Qg4 {[%clk 0:00:03.5]} 31... Nxh3+ {[%clk 0:00:43.2]}
32. Qxh3 {[%clk 0:00:04.4]} 32... Qxe5 {[%clk 0:00:43.7]} 33. Nf3 {[%clk
0:00:04.4]} 33... Qxb2 {[%clk 0:00:44]} 34. g4 {[%clk 0:00:03.1]} 34... Ng6
{[%clk 0:00:36]} 35. Qg3 {[%clk 0:00:02.8]} 35... Qf6 {[%clk 0:00:35.3]} 36. h4
{[%clk 0:00:02.5]} 36... Qf4 {[%clk 0:00:35.3]} 37. Qg2 {[%clk 0:00:02.1]} 37...
Ne5 {[%clk 0:00:34.1]} 38. Nxe5 {[%clk 0:00:01.1]} 38... Qxe5 {[%clk 0:00:35]}
39. g5 {[%clk 0:00:01.4]} 39... hxg5 {[%clk 0:00:35.2]} 40. hxg5 {[%clk
0:00:02.3]} 40... g6 {[%clk 0:00:35.9]} 41. Qf3 {[%clk 0:00:01]} 41... Qxg5+
{[%clk 0:00:35.9]} 0-1